fUSD/lending_fUSD_20251024
["ID","MTS","AMOUNT","RATE_DAILY","PERIOD"]
[392321752,1761334249259,-500.0,0.00038519,30]
[392321753,1761334249268,-500.0,0.00038519,30]
[392321754,1761334249280,-678.11,0.00038519,30]
[392321756,1761334249291,-500.0,0.00038519,30]
[392321757,1761334249301,-500.0,0.00038519,30]
[392321758,1761334249311,-500.0,0.00038519,30]
[392321759,1761334249325,-500.0,0.00038519,30]
[392321761,1761334249334,-654.45,0.00038519,30]
[392321762,1761334249344,-1032.87982466,0.00038519,30]
[392321763,1761334249353,-500.0,0.00038519,30]
[392321764,1761334249363,-500.0,0.00038519,30]
[392321765,1761334249374,-591.03,0.00038519,30]
[392321767,1761334249383,-500.0,0.00038519,30]
[392321768,1761334249393,-500.0,0.00038519,30]
[392321769,1761334249403,-500.0,0.00038519,30]
[392321770,1761334249413,-500.0,0.00038519,30]
[392321772,1761334249422,-1127.77,0.00038519,30]
[392321773,1761334249432,-511.25,0.00038519,30]
[392321774,1761334249441,-500.0,0.00038519,30]
[392321775,1761334249451,-500.0,0.00038519,30]
[392321776,1761334249460,-500.0,0.00038519,30]
[392321778,1761334249469,-500.0,0.00038519,30]
[392321779,1761334249479,-500.0,0.00038519,30]
[392321780,1761334249489,-500.0,0.00038519,2]
[392321781,1761334249498,-500.0,0.00038519,30]
[392321782,1761334249508,-500.0,0.00038519,30]
[392321784,1761334249521,-500.0,0.00038519,30]
[392321785,1761334249531,-500.0,0.00038519,30]
[392321786,1761334249542,-500.0,0.00038519,30]
[392321787,1761334249552,-500.0,0.00038519,30]
[392321789,1761334249561,-500.0,0.00038519,30]
[392321790,1761334249570,-500.0,0.00038519,30]
[392321791,1761334249580,-500.0,0.00038519,30]
[392321792,1761334249589,-500.0,0.00038519,30]
[392321794,1761334249599,-500.0,0.00038519,30]
[392321795,1761334249608,-500.0,0.00038519,30]
[392321796,1761334249618,-597.42,0.00038519,30]
[392321797,1761334249628,-500.0,0.00038519,30]
[392321798,1761334249637,-500.0,0.00038519,30]
[392321800,1761334249647,-502.31,0.00038519,30]
[392321801,1761334249656,-500.0,0.00038519,30]
[392321802,1761334249666,-500.0,0.00038519,30]
[392321803,1761334249675,-500.0,0.00038519,30]
[392321805,1761334249684,-767.81,0.00038519,30]
[392321806,1761334249694,-500.0,0.00038519,30]
[392321807,1761334249703,-500.0,0.00038519,30]
[392321808,1761334249717,-500.0,0.00038519,30]
[392321810,1761334249726,-545.3,0.00038519,30]
[392321811,1761334249735,-465.79407674,0.00038519,30]
[392321812,1761334249745,-500.0,0.00038519,30]
[392321813,1761334249754,-503.96,0.00038519,30]
[392321814,1761334249763,-500.0,0.00038519,30]
[392321816,1761334249772,-500.0,0.00038519,30]
[392321817,1761334249781,-500.0,0.00038519,30]
[392321818,1761334249793,-966.88,0.00038519,30]
[392321819,1761334249804,-500.0,0.00038519,30]
[392321821,1761334249813,-500.0,0.00038519,30]
[392321822,1761334249822,-500.0,0.00038519,30]
[392321823,1761334249832,-500.0,0.00038519,30]
[392321824,1761334249842,-500.0,0.00038519,30]
[392321826,1761334249851,-500.0,0.00038519,30]
[392321827,1761334249860,-500.0,0.00038519,30]
[392321828,1761334249874,-500.0,0.00038519,30]
[392321829,1761334249883,-500.0,0.00038519,30]
[392321831,1761334249893,-774.95,0.00038519,30]
[392321832,1761334249903,-500.0,0.00038519,30]
[392321833,1761334249913,-620.2252073,0.00038519,30]
[392321834,1761334249925,-500.0,0.00038519,30]
[392321836,1761334249935,-406.81553224,0.00038519,30]
[392321837,1761334249944,-500.0,0.00038519,30]
[392321838,1761334249955,-500.0,0.00038519,30]
[392321839,1761334249965,-500.0,0.00038519,30]
[392321840,1761334249975,-500.0,0.00038519,30]
[392321842,1761334249985,-500.0,0.00038519,30]
[392321843,1761334249994,-500.0,0.00038519,30]
[392321844,1761334250005,-500.0,0.00038519,30]
[392321845,1761334250015,-500.65,0.00038519,30]
[392321847,1761334250024,-500.0,0.00038519,30]
[392321848,1761334250035,-500.0,0.00038519,30]
[392321849,1761334250044,-500.0,0.00038519,30]
[392321850,1761334250055,-371.97497548,0.00038519,30]
[392321851,1761334250064,-500.0,0.00038519,30]
[392321853,1761334250074,-500.0,0.00038519,30]
[392321854,1761334250083,-500.0,0.00038519,30]
[392321855,1761334250095,-500.0,0.00038519,30]
[392321856,1761334250104,-535.03,0.00038519,30]
[392321858,1761334250114,-500.0,0.00038519,30]
[392321859,1761334250123,-500.0,0.00038519,30]
[392321860,1761334250133,-500.0,0.00038519,30]
[392321861,1761334250142,-540.11,0.00038519,30]
[392321862,1761334250151,-500.0,0.00038519,30]
[392321864,1761334250160,-500.0,0.00038519,30]
[392321865,1761334250172,-551.3947534,0.00038519,30]
[392321866,1761334250183,-347.31986767,0.00038519,30]
[392321867,1761334250193,-500.0,0.00038519,30]
[392321869,1761334250203,-500.0,0.00038519,30]
[392321870,1761334250212,-176.96611413,0.00038519,30]
[392321871,1761334250222,-500.0,0.00038519,30]
[392321872,1761334250231,-611.78,0.00038519,30]
[392321874,1761334250241,-457.42195687,0.00038519,30]
[392321875,1761334250250,-500.0,0.00038519,30]
[392321876,1761334250260,-500.0,0.00038519,30]
[392321877,1761334250269,-577.74,0.00038519,30]
[392321878,1761334250278,-500.0,0.00038519,30]
[392321880,1761334250288,-603.25359435,0.00038519,30]
[392321881,1761334250298,-500.0,0.00038519,30]
[392321882,1761334250318,-500.0,0.00038519,30]
[392321883,1761334250327,-500.0,0.00038519,30]
[392321885,1761334250337,-523.51331957,0.00038519,30]
[392321886,1761334250347,-622.46,0.00038519,30]
[392321887,1761334250357,-500.0,0.00038519,30]
[392321888,1761334250366,-530.62,0.00038519,30]
[392321890,1761334250376,-500.0,0.00038519,30]
[392321891,1761334250385,-500.0,0.00038519,30]
[392321892,1761334250395,-214.20737217,0.00038519,30]
[392321893,1761334250404,-500.0,0.00038519,30]
[392321894,1761334250414,-500.0,0.00038519,30]
[392321896,1761334250424,-500.0,0.00038519,30]
[392321897,1761334250433,-500.0,0.00038519,30]
[392321898,1761334250443,-500.0,0.00038519,30]
[392321899,1761334250456,-500.0,0.00038519,30]
[392321901,1761334250466,-581.55,0.00038519,30]
[392321902,1761334250475,-500.0,0.00038519,30]
[392321903,1761334250485,-500.0,0.00038519,30]
[392321904,1761334250495,-500.0,0.00038519,30]
[392321906,1761334250507,-500.0,0.00038519,30]
[392321907,1761334250517,-500.00000017,0.00038519,30]
[392321908,1761334250528,-500.0,0.00038519,30]
[392321909,1761334250539,-500.0,0.00038519,30]
[392321911,1761334250550,-500.0,0.00038519,30]
[392321912,1761334250561,-500.0,0.00038519,30]
[392321913,1761334250572,-500.0,0.00038519,30]
[392321914,1761334250583,-500.0,0.00038519,30]
[392321916,1761334250594,-500.0,0.00038519,30]
[392321917,1761334250604,-500.0,0.00038519,30]
[392321918,1761334250616,-500.0,0.00038519,30]
[392321919,1761334250627,-500.0,0.00038519,30]
[392321921,1761334250637,-576.88,0.00038519,30]
[392321922,1761334250648,-500.0,0.00038519,30]
[392321923,1761334250660,-500.0,0.00038519,30]
[392321924,1761334250670,-500.0,0.00038519,30]
[392321926,1761334250681,-500.0,0.00038519,30]
[392321927,1761334250692,-500.0,0.00038519,30]
[392321928,1761334250703,-500.0,0.00038519,30]
[392321929,1761334250714,-500.0,0.00038519,30]
[392321931,1761334250724,-500.0,0.00038519,30]
[392321932,1761334250735,-500.0,0.00038519,30]
[392321933,1761334250746,-537.39,0.00038519,30]
[392321934,1761334250757,-500.0,0.00038519,30]
[392321936,1761334250768,-500.0,0.00038519,30]
[392321937,1761334250780,-500.0,0.00038519,30]
[392321938,1761334250793,-500.0,0.00038519,30]
[392321939,1761334250804,-500.0,0.00038519,30]
[392321941,1761334250815,-521.84,0.00038519,30]
[392321942,1761334250826,-500.0,0.00038519,30]
[392321943,1761334250838,-1009.27,0.00038519,30]
[392321945,1761334250853,-500.0,0.00038519,30]
[392321946,1761334250865,-500.0,0.00038519,30]
[392321947,1761334250877,-500.0,0.00038519,30]
[392321948,1761334250889,-536.14,0.00038519,30]
[392321950,1761334250900,-300.0,0.00038519,2]
[392321951,1761334250911,-500.0,0.00038519,30]
[392321952,1761334250923,-583.25498488,0.00038519,30]
[392321953,1761334250935,-500.0,0.00038519,30]
[392321955,1761334250947,-500.0,0.00038519,30]
[392321956,1761334250959,-503.67,0.00038519,30]
[392321957,1761334250971,-500.0,0.00038519,30]
[392321959,1761334250983,-500.0,0.00038519,30]
[392321960,1761334250994,-500.0,0.00038519,30]
[392321961,1761334251006,-500.0,0.00038519,30]
[392321962,1761334251017,-500.0,0.00038519,30]
[392321964,1761334251028,-500.0,0.00038519,30]
[392321965,1761334251040,-600.0,0.00038519,30]
[392321966,1761334251051,-500.0,0.00038519,30]
[392321967,1761334251063,-500.0,0.00038519,30]
[392321968,1761334251074,-500.0,0.00038519,30]
[392321970,1761334251086,-523.5,0.00038519,30]
[392321971,1761334251096,-475.03559111,0.00038519,30]
[392321972,1761334251108,-500.0,0.00038519,30]
[392321973,1761334251119,-500.0,0.00038519,30]
[392321975,1761334251130,-500.0,0.00038519,30]
[392321976,1761334251141,-500.0,0.00038519,30]
[392321977,1761334251152,-500.0,0.00038519,30]
[392321978,1761334251163,-500.0,0.00038519,30]
[392321980,1761334251174,-500.0,0.00038519,30]
[392321981,1761334251185,-500.0,0.00038519,30]
[392321982,1761334251196,-500.0,0.00038519,30]
[392321983,1761334251207,-546.83,0.00038519,30]
[392321985,1761334251222,-500.0,0.00038519,30]
[392321986,1761334251234,-696.67,0.00038519,30]
[392321987,1761334251246,-500.0,0.00038519,30]
[392321989,1761334251257,-500.0,0.00038519,30]
[392321990,1761334251268,-500.0,0.00038519,30]
[392321991,1761334251279,-500.0,0.00038519,30]
[392321992,1761334251292,-500.0,0.00038519,30]
[392321994,1761334251303,-500.0,0.00038519,30]
[392321995,1761334251314,-717.42,0.00038519,30]
[392321996,1761334251325,-500.0,0.00038519,30]
[392321997,1761334251336,-200.0,0.00038519,30]
[392321999,1761334251347,-500.0,0.00038519,30]
[392322000,1761334251358,-500.0,0.00038519,30]
[392322001,1761334251369,-570.11,0.00038519,30]
[392322002,1761334251380,-500.0,0.00038519,30]
[392322004,1761334251393,-500.0,0.00038519,30]
[392322005,1761334251404,-525.35,0.00038519,30]
[392322006,1761334251420,-500.0,0.00038519,30]
[392322007,1761334251430,-512.16,0.00038519,30]
[392322008,1761334251441,-500.0,0.00038519,30]
[392322009,1761334251451,-500.0,0.00038519,30]
[392322010,1761334251462,-500.0,0.00038519,30]
[392322011,1761334251472,-500.0,0.00038519,30]
[392322012,1761334251482,-500.0,0.00038519,30]
[392322013,1761334251493,-500.0,0.00038519,30]
[392322014,1761334251504,-500.0,0.00038519,30]
[392322015,1761334251515,-604.16,0.00038519,30]
[392322016,1761334251525,-591.87,0.00038519,30]
[392322017,1761334251539,-500.0,0.00038519,30]
[392322018,1761334251550,-500.0,0.00038519,30]
[392322019,1761334251561,-500.0,0.00038519,30]
[392322021,1761334251572,-500.0,0.00038519,30]
[392322022,1761334251583,-500.0,0.00038519,30]
[392322023,1761334251595,-500.0,0.00038519,30]
[392322024,1761334251606,-500.0,0.00038519,30]
[392322026,1761334251617,-500.0,0.00038519,30]
[392322027,1761334251628,-500.0,0.00038519,30]
[392322028,1761334251639,-500.0,0.00038519,30]
[392322029,1761334251650,-500.0,0.00038519,30]
[392322031,1761334251661,-500.0,0.00038519,30]
[392322032,1761334251672,-500.0,0.00038519,30]
[392322033,1761334251683,-500.0,0.00038519,30]
[392322035,1761334251694,-500.0,0.00038519,30]
[392322036,1761334251706,-500.0,0.00038519,30]
[392322037,1761334251718,-500.0,0.00038519,30]
[392322038,1761334251729,-545.39,0.00038519,30]
[392322040,1761334251741,-500.0,0.00038519,30]
[392322041,1761334251753,-500.0,0.00038519,30]
[392322042,1761334251776,-501.23,0.00038519,30]
[392322044,1761334251795,-500.0,0.00038519,30]
[392322045,1761334251809,-500.0,0.00038519,30]
[392322046,1761334251821,-500.0,0.00038519,30]
[392322048,1761334251832,-500.0,0.00038519,30]
[392322049,1761334251845,-500.0,0.00038519,30]
[392322050,1761334251859,-500.0,0.00038519,30]
[392322052,1761334251872,-500.0,0.00038519,30]
[392322053,1761334251886,-500.0,0.00038519,30]
[392322054,1761334251898,-500.0,0.00038519,30]
[392322056,1761334251912,-500.0,0.00038519,30]
[392322057,1761334251924,-500.0,0.00038519,30]
[392322058,1761334251936,-500.0,0.00038519,30]
[392322059,1761334251947,-500.0,0.00038519,30]
[392322061,1761334251961,-500.0,0.00038519,30]
[392322062,1761334251973,-500.0,0.00038519,30]
[392322063,1761334251986,-731.11,0.00038519,30]
[392322065,1761334251999,-416.8461179,0.00038519,30]
[392322066,1761334252012,-500.0,0.00038519,30]
[392322067,1761334252024,-2333.2,0.00038519,30]
[392322069,1761334252037,-500.0,0.00038519,30]
[392322070,1761334252050,-500.0,0.00038519,30]
[392322071,1761334252063,-202.32477001,0.00038519,30]
[392322072,1761334252075,-500.0,0.00038519,30]
[392322074,1761334252088,-546.81378044,0.00038519,30]
[392322075,1761334252101,-500.0,0.00038519,30]
[392322076,1761334252113,-586.06,0.00038519,30]
[392322078,1761334252126,-500.0,0.00038519,30]
[392322079,1761334252141,-500.0,0.00038519,30]
[392322080,1761334252153,-500.0,0.00038519,30]
[392322082,1761334252166,-500.0,0.00038519,30]
[392322083,1761334252179,-500.0,0.00038519,30]
[392322084,1761334252195,-500.0,0.00038519,30]
[392322086,1761334252208,-571.16,0.00038519,30]
[392322087,1761334252221,-500.0,0.00038519,30]
[392322088,1761334252235,-500.0,0.00038519,30]
[392322090,1761334252245,-511.0,0.00038519,30]
[392322091,1761334252255,-500.0,0.00038519,30]
[392322092,1761334252265,-500.0,0.00038519,30]
[392322093,1761334252278,-305.06470946,0.00038519,2]
[392322095,1761334252293,-500.0,0.00038519,30]
[392322096,1761334252305,-500.0,0.00038519,30]
[392322097,1761334252316,-500.0,0.00038519,30]
[392322099,1761334252326,-500.0,0.00038519,30]
[392322100,1761334252337,-568.02,0.00038519,30]
[392322101,1761334252350,-500.0,0.00038519,30]
[392322102,1761334252365,-500.0,0.00038519,30]
[392322104,1761334252377,-500.0,0.00038519,2]
[392322105,1761334252387,-500.0,0.00038519,30]
[392322106,1761334252398,-500.0,0.00038519,30]
[392322107,1761334252409,-500.0,0.00038519,30]
[392322109,1761334252421,-500.0,0.00038519,30]
[392322110,1761334252433,-500.0,0.00038519,30]
[392322111,1761334252444,-500.0,0.00038519,30]
[392322113,1761334252456,-500.0,0.00038519,30]
[392322114,1761334252468,-500.0,0.00038519,30]
[392322115,1761334252481,-500.0,0.00038519,30]
[392322117,1761334252496,-500.0,0.00038519,30]
[392322118,1761334252523,-667.48,0.00038519,30]
[392322120,1761334252538,-500.0,0.00038519,30]
[392322121,1761334252551,-500.0,0.00038519,30]
[392322122,1761334252565,-732.55,0.00038519,30]
[392322124,1761334252580,-500.0,0.00038519,30]
[392322125,1761334252593,-500.0,0.00038519,30]
[392322126,1761334252608,-500.0,0.00038519,30]
[392322128,1761334252621,-527.71,0.00038519,30]
[392322129,1761334252634,-632.27,0.00038519,30]
[392322130,1761334252647,-614.18,0.00038519,30]
[392322132,1761334252661,-529.85,0.00038519,30]
[392322133,1761334252675,-300.0,0.00038519,2]
[392322134,1761334252689,-500.0,0.00038519,30]
[392322135,1761334252702,-500.0,0.00038519,2]
[392322137,1761334252715,-500.0,0.00038519,30]
[392322138,1761334252727,-500.0,0.00038519,30]
[392322139,1761334252740,-500.0,0.00038519,30]
[392322141,1761334252752,-500.0,0.00038519,30]
[392322142,1761334252764,-608.13,0.00038519,30]
[392322143,1761334252777,-500.0,0.00038519,30]
[392322145,1761334252793,-613.72,0.00038519,30]
[392322146,1761334252806,-627.21,0.00038519,30]
[392322147,1761334252820,-500.0,0.00038519,30]
[392322148,1761334252833,-256.29153562,0.00038519,30]
[392322150,1761334252845,-500.0,0.00038519,30]
[392322151,1761334252857,-189.03041823,0.00038519,30]
[392322152,1761334252871,-500.0,0.00038519,30]
[392322154,1761334252889,-681.52,0.00038519,30]
[392322155,1761334252904,-500.0,0.00038519,30]
[392322156,1761334252918,-500.0,0.00038519,30]
[392322158,1761334252932,-500.0,0.00038519,30]
[392322159,1761334252946,-533.39276155,0.00038519,30]
[392322160,1761334252962,-500.0,0.00038519,30]
[392322162,1761334252976,-500.0,0.00038519,30]
[392322163,1761334252989,-587.76,0.00038519,30]
[392322164,1761334253001,-500.0,0.00038519,30]
[392322166,1761334253024,-500.0,0.00038519,30]
[392322167,1761334253036,-500.0,0.00038519,30]
[392322168,1761334253049,-566.63781265,0.00038519,30]
[392322170,1761334253061,-500.0,0.00038519,30]
[392322171,1761334253074,-500.0,0.00038519,30]
[392322172,1761334253087,-500.0,0.00038519,30]
[392322174,1761334253099,-500.0,0.00038519,30]
[392322175,1761334253111,-500.0,0.00038519,30]
[392322176,1761334253124,-500.0,0.00038519,30]
[392322178,1761334253136,-500.0,0.00038519,30]
[392322179,1761334253148,-503.15112926,0.00038519,30]
[392322180,1761334253160,-396.92684041,0.00038519,30]
[392322181,1761334253172,-500.0,0.00038519,30]
[392322183,1761334253184,-544.94,0.00038519,30]
[392322184,1761334253200,-547.57,0.00038519,30]
[392322185,1761334253213,-500.0,0.00038519,30]
[392322187,1761334253226,-500.0,0.00038519,30]
[392322188,1761334253239,-500.0,0.00038519,30]
[392322189,1761334253252,-500.0,0.00038519,30]
[392322191,1761334253265,-500.0,0.00038519,30]
[392322192,1761334253277,-500.0,0.00038519,30]
[392322193,1761334253290,-1355.78,0.00038519,30]
[392322195,1761334253302,-500.0,0.00038519,30]
[392322196,1761334253314,-500.0,0.00038519,2]
[392322197,1761334253327,-5389.31654603,0.00038519,30]
[392322210,1761334253858,-1109.5984,0.00038519,30]
[392322230,1761334254807,-151.0,0.00036788,30]
[392322232,1761334254817,-466.320745,0.00036788,30]
[392322233,1761334254826,-382.679255,0.00036788,30]
[392322239,1761334255037,-83.64149,0.00036788,30]
[392322240,1761334255047,-151.0,0.00036942,30]
[392322241,1761334255056,-174.0418105,0.00036942,30]
[392322243,1761334255089,-292.2789345,0.00036942,30]
[392322244,1761334255099,-175.81245356,0.00036942,30]
[392322253,1761334255434,-951.18,0.00036493,2]
[392322254,1761334255445,-211.74866153,0.00036788,30]
[392322257,1761334255535,-254.57208347,0.00036788,30]
[392322259,1761334255545,-466.320745,0.00036788,30]
[392322260,1761334255554,-290.50829144,0.00036942,30]
[392322261,1761334255564,-466.320745,0.00036942,30]
[392322262,1761334255573,-466.320745,0.00036942,30]
[392322264,1761334255583,-466.320745,0.00037,30]
[392322265,1761334255593,-466.320745,0.00037,30]
[392322266,1761334255603,-466.320745,0.00037,30]
[392322267,1761334255613,-466.320745,0.0003739,30]
[392322269,1761334255623,-466.320745,0.0003739,30]
[392322270,1761334255632,-466.320745,0.0003739,30]
[392322271,1761334255643,-466.320745,0.00037507,30]
[392322272,1761334255654,-466.320745,0.00037507,30]
[392322274,1761334255664,-466.320745,0.00037507,30]
[392322275,1761334255674,-500.0,0.00037773,5]
[392322276,1761334255683,-500.0,0.00038282,2]
[392322277,1761334255694,-500.0,0.00038356,30]
[392322279,1761334255704,-500.0,0.00038356,30]
[392322280,1761334255714,-500.0,0.00038356,30]
[392322281,1761334255723,-6987.1815818,0.00038519,30]
[392322283,1761334255759,-466.320745,0.00037,30]
[392322284,1761334255770,-3882.78347217,0.00038519,30]
[392322285,1761334255780,-102.27818442,0.00038519,30]
[392322287,1761334255793,-397.72181558,0.00038519,30]
[392322288,1761334255805,-95.95105942,0.00038519,30]
[392324015,1761334347936,-190.40926655,0.00017,2]
[392324029,1761334884059,242.04,0.00013699,2]
[392324031,1761334917960,-191.08,0.00016712,2]
[392324032,1761334917982,-13.82186864,0.00017,2]
[392324034,1761335285671,-45.76886481,0.00017,2]
[392324040,1761335431992,-395.31113519,0.00020087,2]
[392324041,1761335432002,-242.04,0.00020187,2]
[392324042,1761335432013,-242.04,0.00026676,2]
[392324043,1761335432023,-193.91,0.00033,2]
[392324044,1761335432033,-242.04,0.00033165,2]
[392324045,1761335432043,-1212.2394593,0.0003378,2]
[392324046,1761335432053,-166.66,0.00034315,30]
[392324047,1761335432062,-1253.74520947,0.00034964,3]
[392324048,1761335432071,-166.66,0.00035037,30]
[392324049,1761335432080,-400.0,0.00035042,2]
[392324050,1761335432090,-151.0,0.00035043,2]
[392324051,1761335432100,-151.0,0.00035043,2]
[392324052,1761335432109,-151.0,0.00035043,2]
[392324053,1761335432119,-151.0,0.00035043,2]
[392324054,1761335432128,-151.0,0.00035043,2]
[392324055,1761335432138,-151.0,0.00035043,2]
[392324056,1761335432148,-151.0,0.00035043,2]
[392324057,1761335432157,-151.0,0.00035043,2]
[392324058,1761335432167,-151.0,0.00035043,2]
[392324059,1761335432177,-151.0,0.00035043,2]
[392324060,1761335432186,-151.0,0.00035043,2]
[392324061,1761335432195,-151.0,0.00035043,2]
[392324062,1761335432204,-151.0,0.00035043,2]
[392324063,1761335432214,-151.0,0.00035043,2]
[392324064,1761335432223,-151.0,0.00035043,2]
[392324065,1761335432233,-151.0,0.00035043,2]
[392324066,1761335432243,-151.0,0.00035043,2]
[392324067,1761335432252,-151.0,0.00035043,2]
[392324068,1761335432266,-151.0,0.00035043,2]
[392324069,1761335432276,-151.0,0.00035043,2]
[392324070,1761335432286,-151.0,0.00035043,2]
[392324071,1761335432296,-151.0,0.00035043,2]
[392324072,1761335432306,-151.0,0.00035043,2]
[392324073,1761335432316,-151.0,0.00035043,2]
[392324074,1761335432326,-151.0,0.00035043,2]
[392324075,1761335432336,-151.0,0.00035043,2]
[392324076,1761335432347,-151.0,0.00035043,2]
[392324077,1761335432357,-151.0,0.00035043,2]
[392324078,1761335432366,-151.0,0.00035043,2]
[392324079,1761335432376,-151.0,0.00035043,2]
[392324080,1761335432386,-151.0,0.00035043,2]
[392324082,1761335432396,-151.0,0.00035043,2]
[392324083,1761335432406,-151.0,0.00035043,2]
[392324084,1761335432416,-151.0,0.00035043,2]
[392324085,1761335432426,-151.0,0.00035043,2]
[392324086,1761335432436,-151.0,0.00035043,2]
[392324087,1761335432446,-151.0,0.00035043,2]
[392324088,1761335432459,-151.0,0.00035043,2]
[392324089,1761335432469,-289.94526954,0.00035043,2]
[392324090,1761335432479,-420.989,0.00035064,40]
[392324091,1761335432489,-20643.30284887,0.00035064,2]
[392324092,1761335432518,-1119.31715113,0.00035064,2]
[392324093,1761335432527,-500.0,0.000351,5]
[392324094,1761335432537,-150.0,0.0003526,7]
[392324095,1761335432548,-150.0,0.0003526,7]
[392324096,1761335432558,-150.0,0.0003526,7]
[392324097,1761335432568,-150.0,0.0003526,7]
[392324098,1761335432577,-150.0,0.0003526,7]
[392324099,1761335432587,-150.80095926,0.0003526,7]
[392324100,1761335432597,-150.0,0.0003526,7]
[392324101,1761335432607,-150.00000001,0.0003526,7]
[392324102,1761335432617,-150.0,0.0003526,7]
[392324103,1761335432626,-150.0,0.0003526,7]
[392324104,1761335432636,-5520.97007093,0.00035309,2]
[392324105,1761335432648,-6737.16920589,0.00035309,2]
[392324122,1761335437940,-782.54342496,0.00035309,2]
[392324154,1761335440291,-550.67197502,0.00035309,2]
[392324155,1761335440300,-344.46457403,0.00035471,2]
[392324165,1761335443081,-539.87426138,0.00035471,2]
[392324166,1761335443091,-152.0,0.00035598,3]
[392324167,1761335443101,-500.0,0.00035648,5]
[392324168,1761335443112,-4001.55,0.00035656,2]
[392324169,1761335443123,-1000.0,0.00035658,2]
[392324170,1761335443132,-150.0,0.00035674,2]
[392324171,1761335443143,-250.0,0.00035693,2]
[392324172,1761335443152,-884.33883541,0.00035749,2]
[392324173,1761335443163,-166.66,0.0003576,30]
[392324174,1761335443173,-500.0,0.00035781,2]
[392324175,1761335443184,-2631.0,0.00035877,2]
[392324176,1761335443194,-486.37,0.0003588,2]
[392324177,1761335443205,-1253.74520946,0.00035884,3]
[392324178,1761335443215,-465.79407674,0.00035984,30]
[392324179,1761335443224,-500.0,0.00035984,30]
[392324180,1761335443235,-500.0,0.00035984,30]
[392324181,1761335443245,-500.0,0.00035984,30]
[392324182,1761335443255,-433.22462806,0.00035984,30]
[392324183,1761335443265,-476.35224409,0.00036029,2]
[392324184,1761335443275,-884.33883541,0.00036141,2]
[392324185,1761335443285,-200.0,0.00036255,2]
[392324186,1761335443295,-187.57,0.00036262,120]
[392324187,1761335443305,-884.33883541,0.0003633,2]
[392324188,1761335443315,-3847.93121281,0.00036382,2]
[392324189,1761335443326,-500.0,0.00036445,30]
[392324190,1761335443336,-166.66,0.00036482,30]
[392324191,1761335443346,-500.0,0.00036624,30]
[392324192,1761335443356,-500.0,0.00036636,30]
[392324193,1761335443366,-884.33883541,0.00036693,2]
[392324194,1761335443376,-500.0,0.00036727,30]
[392324195,1761335443386,-500.0,0.00036775,30]
[392324196,1761335443396,-884.33883541,0.00036784,2]
[392324197,1761335443405,-749.56052645,0.00036819,120]
[392324198,1761335443415,-500.0,0.00036819,30]
[392324199,1761335443426,-500.0,0.00036823,30]
[392324200,1761335443436,-230.76511616,0.0003701,15]